Cogmind - Beta 13 @@@ ROGUE MODE // 2024.04.18 @ 16:10:49 Player: lazy_engineer Result: Self-destructed Performance ------------- Evolutions (1) 500 Regions Visited (3) 600 Robots Destroyed (20) 100 Value Destroyed (291) 291 Prototype IDs (0) 0 Alien Tech Used (0) 0 Bonus (81) 81 TOTAL SCORE: 1572 Bonus ------- Follower Combat Kills 81 Cogmind --------- Core Integrity 360/400 Matter 235/300 Energy 67/100 System Corruption 14% Temperature Cool (0) Movement Treading (160) Location -9/Materials Parts ------- > --- POWER (1) -------- (None) > --- PROPULSION (3) --- Improved Treads > --- UTILITY (3) ------ Small Storage Unit > --- WEAPON (2) ------- Mining Laser > --- INVENTORY (8) ---- Ion Engine Light Nuclear Core Improved Terrain Scanner Improved Terrain Scanner Light Assault Rifle Light Cannon Grenade Launcher Rocket Launcher Peak State ------------ > --- POWER ------------ Ion Engine > --- PROPULSION ------- Improved Treads Flight Unit Flight Unit > --- UTILITY ---------- Small Storage Unit Structural Scanner Signal Interpreter > --- WEAPON ----------- Mining Laser > --- INVENTORY -------- Ion Engine Light Nuclear Core Improved Terrain Scanner Improved Terrain Scanner Light Assault Rifle Light Cannon Grenade Launcher Rocket Launcher [Rating: 10] Favorites ----------- Power Light Ion Engine Engine Light Ion Engine Propulsion Light Treads Treads Light Treads Wheel Wheel Flight Unit Flight Unit Utility Small Storage Unit Device Structural Scanner Storage Small Storage Unit Processor Signal Interpreter Weapon Light Assault Rifle Ballistic Gun Light Assault Rifle Ballistic Cannon Light Cannon Launcher Rocket Launcher Special Weapon Mining Laser Build | -11 -10 -10 -9 ------- Run | Yrd Mat Min Mat Slots Evolved 2 | . . . 2 Power . | . . . . Propulsion 1 | . . . 1 Utility 1 | . . . 1 Weapon . | . . . . Parts Attached 24 | 6 4 6 8 Power 2 | 1 1 . . Engine 2 | 1 1 . . Core . | . . . . Reactor . | . . . . Propulsion 10 | 2 1 1 6 Treads 3 | 1 1 . 1 Leg . | . . . . Wheel 4 | 1 . 1 2 Hover . | . . . . Flight 3 | . . . 3 Utility 4 | 1 2 . 1 Device 2 | . 2 . . Storage 1 | 1 . . . Processor 1 | . . . 1 Hackware . | . . . . Protection . | . . . . Artifact . | . . . . Weapon 8 | 2 . 5 1 Energy Gun . | . . . . Energy Cannon . | . . . . Ballistic Gun 4 | 2 . 2 . Ballistic Cannon 1 | . . 1 . Launcher 2 | . . 2 . Special Weapon 1 | . . . 1 Impact Weapon . | . . . . Slashing Weapon . | . . . . Piercing Weapon . | . . . . Special Melee Weapon . | . . . . Unidentified Prototypes . | . . . . Parts Lost 5 | . 1 1 3 Power 2 | . 1 . 1 Propulsion 1 | . . 1 . Utility 2 | . . . 2 Weapon . | . . . . Highest Loss Streak 3 | . 1 1 3 To Critical Strikes . | . . . . Average Slot Usage (%) 97 | . 99 99 71 Engine 13 | . 13 14 10 Treads 17 | . 15 22 7 Wheel 8 | . 12 5 3 Device 13 | . 13 14 10 Storage 13 | . 14 14 11 Ballistic Gun 23 | . 28 22 1 Ballistic Cannon 2 | . . 4 3 Naked Turns . | . . . . Heaviest Build 18 | 10 13 18 15 Greatest Support 40 | 10 40 40 23 Greatest Overweight (x) 3 | . 1 1 3 Average Overweight (x) . | . . . . Largest Inventory Capacity 8 | 8 8 8 8 Average Capacity 7 | 7 8 8 8 Most Carried 8 | 5 6 8 8 Average Carried 5 | 3 5 7 7 Final Capacity 8 | 8 8 8 8 Final Carried 8 | 5 6 8 8 Class Distribution -------------------- 100% | Mutant Dominant Class ---------------- Mutant | -10/Materials Mutant | -10/Mines Mutant | -9/Materials Resources | -11 -10 -10 -9 ----------- Run | Yrd Mat Min Mat Matter Collected 549 | 340 40 169 . Remotely . | . . . . Salvage Created 462 | 245 143 74 . Parts 38 | 25 8 5 . Haulers Intercepted . | . . . . Recyclers Shooed . | . . . . Parts Field Recycled . | . . . . Retrieved Matter . | . . . . Parts Self-Destructed . | . . . . Prevented . | . . . . Kills | -11 -10 -10 -9 ------- Run | Yrd Mat Min Mat Combat Hostiles Destroyed 10 | . 5 5 . Guns 6 | . 5 1 . AOE 4 | . . 4 . Classes Destroyed 4 | 2 2 . . Tunneler 9 | 9 . . . Recycler 1 | 1 . . . Swarmer 6 | . 3 3 . Grunt 4 | . 2 2 . Best Kill Streak 4 | 4 3 4 . Combat Bots Only 4 | . 3 4 . Max Kills in Single Turn 1 | 1 1 1 . Gunslinging . | . . . . Exploded 1 | . . 1 . Melee . | . . . . Uniques/NPCs Destroyed . | . . . . Combat | -11 -10 -10 -9 -------- Run | Yrd Mat Min Mat Hostile Shots Fired 60 | . 28 28 4 Missed 16 | . 6 8 2 Damage Taken 871 | . 251 252 368 Core 99 | . 37 22 40 Absorbed by Shields . | . . . . Core Remaining (%) 88 | 100 . 76 . Volleys Fired 72 | 40 18 9 5 Largest 2 | 2 2 2 1 Hottest 100 | 40 40 63 100 Shots Fired 136 | 80 36 15 5 Gun 124 | 80 36 8 . Cannon . | . . . . Launcher 7 | . . 7 . Special 5 | . . . 5 Kinetic 124 | 80 36 8 . Thermal 5 | . . . 5 Explosive 7 | . . 7 . Electromagnetic . | . . . . Robot Hit Streak 12 | 12 7 7 . Robot Miss Streak 3 | 3 2 2 . Penetration Max . | . . . . Secondary Targets 2 | . 2 . . Max Gunslinging Chain 1 | . 1 . . Shots Hit Robots 79 | 46 25 8 . Core Hits 34 | 16 12 6 . Critical Kills . | . . . . Critical Parts Destroyed . | . . . . Critical Strikes . | . . . . Melee Attacks . | . . . . Impact . | . . . . Slashing . | . . . . Piercing . | . . . . Sneak Attacks . | . . . . Combat Hostiles . | . . . . Follow-up Attacks . | . . . . Damage Inflicted 902 | 348 211 343 . Guns 594 | 348 209 37 . Cannons . | . . . . Explosions 300 | . . 300 . Melee . | . . . . Ramming 8 | . 2 6 . Kinetic 594 | 348 209 37 . Thermal . | . . . . Explosive 300 | . . 300 . Electromagnetic . | . . . . Impact . | . . . . Slashing . | . . . . Piercing . | . . . . Highest Corruption 14 | . . . 14 Average Corruption 14 | . . . 14 Corruption Purged . | . . . . Corruption Blocked . | . . . . Effects 1 | . . . 1 Energy Discharges 1 | . . . 1 Overload Shots . | . . . . Overflow Damage 51 | . . 51 . Projectiles . | . . . . Explosions 51 | . . 51 . Melee . | . . . . Knockbacks . | . . . . Impact . | . . . . Kinetic . | . . . . Secondary . | . . . . Self-Inflicted Damage 51 | . 1 50 . Shots 2 | . . 2 . Rammed 2 | . 1 1 . Targets Rammed 2 | . 1 1 . Kicked . | . . . . Crushed . | . . . . Highest Temperature 24 | . 22 24 23 Average Temperature 8 | . 11 7 6 Received Heat Transfer 180 | . 111 69 . Siege Activations . | . . . . Robots Corrupted . | . . . . Combat Hostiles . | . . . . Parts Fried . | . . . . Impact Corruptions . | . . . . Robots Melted . | . . . . Combat Hostiles . | . . . . Parts Melted . | . . . . Heat Transferred . | . . . . Parts Sabotaged . | . . . . Parts Stolen . | . . . . Parts Stripped . | . . . . Power Chain Reactions . | . . . . Alert | -11 -10 -10 -9 ------- Run | Yrd Mat Min Mat Peak Influence 298 | 50 95 298 97 Initial 48 | . 32 36 48 Average 74 | 18 26 168 61 Maximum Alert Level 1 | . . 1 . Low Security (%) 86 | 100 100 58 100 Level 1 13 | . . 41 . Level 2 . | . . . . Level 3 . | . . . . Level 4 . | . . . . Level 5 . | . . . . High Security . | . . . . Max Security . | . . . . Squads Dispatched 2 | . 1 . 1 Investigation 1 | . . . 1 Extermination . | . . . . Reinforcement 1 | . 1 . . Assault . | . . . . Garrison . | . . . . Intercept . | . . . . Searches Triggered . | . . . . Construction Impeded . | . . . . Haulers Reinforced . | . . . . Active Scanning Responses . | . . . . Cargo Convoy Interrupts . | . . . . Stealth | -11 -10 -10 -9 --------- Run | Yrd Mat Min Mat Distress Signals . | . . . . Communications Jammed . | . . . . Distress Signals . | . . . . Times Spotted 21 | . 9 11 1 Peak Tracking Total 4 | . 3 4 1 Tactical Retreats 2 | . 1 1 . Traps | -11 -10 -10 -9 ------- Run | Yrd Mat Min Mat Traps Triggered . | . . . . Indirectly . | . . . . Trap Hack Attempts . | . . . . Triggered . | . . . . Disarmed . | . . . . Reprogrammed . | . . . . Reused . | . . . . Traps Extracted . | . . . . Installed . | . . . . Triggered . | . . . . Machines | -11 -10 -10 -9 ---------- Run | Yrd Mat Min Mat Machines Disabled . | . . . . Max in Single Turn . | . . . . Machines Repaired . | . . . . Machines Dismantled . | . . . . Machines Sabotaged . | . . . . Overloaded Fab Kills . | . . . . Hacking | -11 -10 -10 -9 --------- Run | Yrd Mat Min Mat Machines Accessed 3 | . 2 . 1 Terminals 3 | . 2 . 1 Fabricators . | . . . . Repair Stations . | . . . . Recycling Units . | . . . . Scanalyzers . | . . . . Garrison Access . | . . . . Total Hacks 6 | . 3 . 3 Successful 1 | . 1 . . Failed 5 | . 2 . 3 Catastrophic 2 | . . . 2 Database Lockouts . | . . . . Manual 6 | . 3 . 3 Terminals 6 | . 3 . 3 Fabricators . | . . . . Repair Stations . | . . . . Recycling Units . | . . . . Scanalyzers . | . . . . Garrison Access . | . . . . Terminal Hacks . | . . . . Fabricator Hacks . | . . . . Repair Station Hacks . | . . . . Recycling Unit Hacks . | . . . . Scanalyzer . | . . . . Garrison Access Hacks . | . . . . Unauthorized Hacks 1 | . 1 . . Terminals 1 | . 1 . . Operators 1 | . 1 . . Fabricators . | . . . . Repair Stations . | . . . . Recycling Units . | . . . . Scanalyzers . | . . . . Garrison Access . | . . . . Data Cores Recovered . | . . . . Used . | . . . . Hacking Detections 3 | . 2 . 1 Full Trace Events 1 | . . . 1 Feedback Events . | . . . . Feedback Blocked . | . . . . Robot Schematics Acquired . | . . . . Robots Built . | . . . . Authchips . | . . . . Time . | . . . . Total Robot Build Rating . | . . . . Part Schematics Acquired . | . . . . Parts Built . | . . . . Authchips . | . . . . Time . | . . . . Total Part Build Rating . | . . . . Parts Repaired . | . . . . Time . | . . . . Parts Recycled . | . . . . Recycled Matter . | . . . . Retrieved Matter . | . . . . Retrieved Components . | . . . . Parts Scanalyzed . | . . . . Part Schematics Acquired . | . . . . Parts Damaged . | . . . . Bothacking | -11 -10 -10 -9 ------------ Run | Yrd Mat Min Mat Used RIF Installer . | . . . . Robots Hacked . | . . . . Non-combat . | . . . . Combat . | . . . . Robot Hacks Applied . | . . . . Relay Couplers Released . | . . . . Fabnet Peak Effective % . | . . . . Robots Rewired . | . . . . Allies Hacked . | . . . . Hacks Repelled . | . . . . Allies | -11 -10 -10 -9 -------- Run | Yrd Mat Min Mat Total Allies 3 | . . 3 . Largest Group 3 | . . 3 . Highest-Rated Group 40 | . . 40 . Highest-Rated Ally 16 | . . 16 . Total Orders . | . . . . Ally Attacks 12 | . . 12 . Total Damage 139 | . . 139 . Kills 5 | . . 5 . Allies Corrupted . | . . . . Allies Melted . | . . . . Intel | -11 -10 -10 -9 ------- Run | Yrd Mat Min Mat Robot Analysis Total . | . . . . Derelict Logs Recovered 2 | . . 2 . Drone Launches . | . . . . Drone Recoveries . | . . . . Exploration | -11 -10 -10 -9 ------------- Run | Yrd Mat Min Mat Turns Passed 2089 | 288 975 695 131 Spaces Moved 1037 | 212 185 503 137 Core 8 | 7 . . 1 Treads 319 | . 65 236 18 Legs . | . . . . Wheels 622 | 205 120 267 30 Hover . | . . . . Flight 88 | . . . 88 Fastest Speed 34 | 50 80 95 34 Average Speed 106 | 79 114 125 67 Slowest Speed 200 | 80 160 160 200 Overloaded Moves . | . . . . Propulsion Burnouts . | . . . . Robots Hopped . | . . . . Cave-ins Triggered 1 | . . . 1 Exploration Rate (%) 39 | 8 42 96 12 Regions Visited 3 Branch Regions 1 Pre-discovered Areas . | . . . . Known Exits Taken . | . . . . Unknown Exits Taken 3 | 1 1 1 . Scrap Searched 1 | . . 1 . Spaces Dug 5 | . . . 5 Terrain Destroyed 65 | . . 60 5 Melee . | . . . . Projectile 5 | . . . 5 AOE 60 | . . 60 . Terrain Rammed . | . . . . Walls Destroyed . | . . . . Machines Disabled . | . . . . Actions | -11 -10 -10 -9 --------- Run | Yrd Mat Min Mat Total 1897 | 268 918 551 160 Wait 738 | . 708 29 1 Move 1034 | 211 184 502 137 Hop . | . . . . Pick Up 17 | 11 3 3 . Fast Attach 8 | . . 1 7 Attach 9 | 6 2 1 . Detach 1 | . . . 1 Swap 7 | . 2 4 1 Drop 9 | . . 1 8 Fire 72 | 40 18 9 5 Melee . | . . . . Ram 2 | . 1 1 . Kick . | . . . . Crush . | . . . . Escape Stasis . | . . . . Rewire . | . . . . Trap . | . . . . Miscellaneous . | . . . . Route ------- -11/Scrapyard -10/Materials -10/Mines (discovered 2 exits: *Mat x2) -9/Materials (discovered 2 exits: Min x2) History --------- Turn | Location | Event 20 | -11/Scrapyard | Discovered new exit (range 16) 289 | -11/Scrapyard | Entered Materials 309 | -10/Materials | Build established: Mutant 1091 | -10/Materials | Discovered new exit (range 7) 1264 | -10/Materials | Entered Mines 1330 | -10/Mines | Received a Rocket Launcher from a helpful Derelict 1464 | -10/Mines | Discovered new exit (range 8) 1482 | -10/Mines | Assisted by bots powering up and referring to "LRC-V3" 1506 | -10/Mines | Discovered new exit (range 16) 1540 | -10/Mines | Learned Materials terminal intel 1591 | -10/Mines | Found a hidden stash of uninstalled traps 1959 | -10/Mines | Entered Materials 1959 | -9/Materials | Evolved 2 slots: Propulsion x1, Utility x1 1960 | -9/Materials | Identified exit to Mines 1961 | -9/Materials | Loaded intel: 12 terminal locations 2088 | -9/Materials | Crushed by falling debris 2088 | -9/Materials | System corruption reached 10% 2090 | -9/Materials | Self-destructed Last Messages --------------- Investigation squad. 01998_ Dropped Wheel. 01998_ Acquired Wheel. 02002_ Dropped Imp. Terrain Scanner. 02003_ Dropped Wheel. 02004_ Dropped Lgt. Treads. 02006_ Acquired Flight Unit. 02030_ Acquired Signal Interpreter. 02050_ Dropped Flight Unit. 02050_ Acquired Imp. Treads. 02052_ Dropped Flight Unit. 02088_ The unstable cave ceiling collapses. 02088_ Crushed by falling debris. 02088_ Ion Engine destroyed. 02088_ System corrupted by crushing effect (+5). 02088_ Signal Interpreter destroyed. 02088_ System corrupted by crushing effect (+5). 02088_ Structural Scanner destroyed. 02088_ System corrupted by crushing effect (+4). 02090_ System corrupted: Energy discharge (-33). Map ----- +----------------------------------------------------+ | | | | | | | | | | | | | ????????????????????????????????????????????? | | ????????????????????????????????????????????? | | ????????????????????????????????????????????? | | ??????????????????????? ##??#############???? | | ??????????????????????? # ############???? | | ??????????????????????? + ##???? | | ??????????????????????? # ###??? | | ??????????????????????? # #######/#####??? | | ??????????????????????? ##??###### ##??? | | ????????????????????????????????## """ ##??? | | ?????????????????????????######### """ ##??? | | ?????????????????????????######### """ ##??? | | ?????????????????????????## ] " ##??? | | ??????????????????????? ### # ##??? | | ??????????????????????? ### ####+####??? | | ??????????????????????? + + = ==!#### ####??? | | ??????????????????????? # #== ==!#### ##????? | | ???????""?????????????? # # ==!#### ##????? | | ???????"T????????? #Y########### ##????? | | ???????""?????????#######@### ## ##????? | | ??????????????????## # #= ## ##????? | | ??????????????????## ######## """## ##????? | | ??????????????????## ######## """## ##????? | | ???????????????????????????## """## ##????? | | ???????????????????????###### ## ##????? | | ???????????????????????#########+#### ##????? | | ??????????????????? T ##????? | | ???????????????????????######### ##????? | | ???????????????????????######### ##????? | | ???????????????????????## # ##????? | | ???????????????????????## = # ##????? | | ???????????????????????##]]== # ##????? | | ???????????????????????##]! = # ##????? | | ???????????????????????##]= # ##????? | | ????????????????????##### # ##????? | | ????????????????????##########+# ##????? | | ????????????????????## ##????? | | ????????????????????## ##+##############????? | | ????????????????????## ## #" ##????? | | ????????????????????## ## "# "" ##????? | | ????????????????????## ## ## "T ##????? | | ????????????????????# # ## "" ##????? | | ???????????????????## # ## ##????? | | ???????????????????## # ## """ ##????? | +----------------------------------------------------+ Best States ------------- Heat Dissipation 28 Energy Generation 10 Energy Capacity 250 Matter Stores 300 Matter Capacity 300 Sight Range 16 Terrain Scan Range 16 Terrain Scan Density 10 Evasion (%) 63 Recoil Reduction 2 Item Schematics ----------------- None Robot Schematics ------------------ None Fabricated ------------ Nothing Alien Tech Used ----------------- None Achievements -------------- None Challenges ------------ None Game ------ Seed MeleeGaussNullifier Manual? 0 Play Time 00:13:42 Cumulative 35.2 hours Start 2024.04.18 @ 15:54:52 End 2024.04.18 @ 16:10:49 Sessions 1 Manual Loads 0 Difficulty Rogue Special Mode None Game No. 71 Rogue 71 Adventurer 0 Explorer 0 Win Type - Total 0 Types 0/0/0/0/0/0/0/0/0 Lore% 24 Gallery% 28 Achievement% 25 Wizard Run 0 Options --------- Layout 0 ASCII 0 Keyboard 0 Movement Mouse Keybinds 0 Fullscreen 1 Font 24/Smallcaps Map View 76x50 Zoom Use 0% Tactical HUD 1 Map Filters NONE Filters NONE Steam 1 RUN: fc23b66f-681c-4343-bd7c-c25b0c8d93e8